bitfinex-derivatives/quotes_BTCF0:USTF0_20251109
["timestamp","ask_amount","ask_price","bid_price","bid_amount"]
[1762665422859,0.95040738,101910.0,101890.0,0.04274]
[1762665423356,0.2474,101920.0,101900.0,0.76434]
[1762665423665,0.2474,101920.0,101910.0,0.3608]
[1762665423666,0.39390582,101920.0,101910.0,0.3608]
[1762665423859,0.39390582,101920.0,101910.0,0.34802861]
[1762665424054,0.40389798,101920.0,101910.0,0.34802861]
[1762665424462,0.74709798,101920.0,101910.0,0.34802861]
[1762665424648,0.75409798,101920.0,101910.0,0.34802861]
[1762665425055,0.75409798,101920.0,101910.0,0.39076861]
[1762665425459,0.75409798,101920.0,101910.0,0.34802861]
[1762665426055,0.74909798,101920.0,101910.0,0.34902861]
[1762665426261,0.75509798,101920.0,101910.0,0.34902861]
[1762665429461,0.41689798,101920.0,101910.0,0.53310861]
[1762665429660,0.16949798,101920.0,101910.0,0.18508]
[1762665430070,0.16949798,101920.0,101910.0,0.90668]
[1762665431865,0.15950582,101920.0,101910.0,0.90668]
[1762665433262,0.15750582,101920.0,101910.0,0.90568]
[1762665433463,0.19261329,101920.0,101910.0,0.90568]
[1762665434070,0.18861329,101920.0,101910.0,0.90568]
[1762665434670,0.18561329,101920.0,101910.0,0.90568]
[1762665434966,0.18761329,101920.0,101910.0,0.90568]
[1762665435162,0.18361329,101920.0,101910.0,0.90568]
[1762665435369,0.18561329,101920.0,101910.0,0.90568]
[1762665435766,0.23827161,101920.0,101910.0,0.90568]
[1762665437870,0.18561329,101920.0,101910.0,0.90568]
[1762665440367,0.15050582,101920.0,101910.0,0.90568]
[1762665440670,0.18561329,101920.0,101910.0,0.90568]
[1762665441270,0.15050582,101920.0,101910.0,0.90568]
[1762665441472,0.18561329,101920.0,101910.0,0.90568]
[1762665445275,0.15050582,101920.0,101910.0,0.90568]
[1762665446274,0.04037582,101920.0,101910.0,1.00384]
[1762665447174,0.09790789,101930.0,101920.0,0.23094]
[1762665447374,0.09790789,101930.0,101920.0,0.59174]
[1762665447577,0.29012556,101930.0,101920.0,0.59174]
[1762665447771,0.08786383,101930.0,101920.0,0.59174]
[1762665448276,0.09186383,101930.0,101920.0,0.59174]
[1762665448771,0.09186383,101930.0,101920.0,0.6898904]
[1762665449465,0.09486383,101930.0,101920.0,0.6898904]
[1762665450078,0.04220551,101930.0,101920.0,0.6898904]
[1762665451870,0.00709804,101930.0,101920.0,0.6898904]
[1762665452077,0.03510747,101940.0,101930.0,0.23094]
[1762665452275,0.03510747,101940.0,101930.0,0.59174]
[1762665452473,0.18254539,101940.0,101930.0,0.59174]
[1762665453073,0.18654539,101940.0,101930.0,0.59174]
[1762665453474,0.23773539,101940.0,101930.0,0.59174]
[1762665454178,0.24173539,101940.0,101930.0,0.59174]
[1762665455179,0.29439371,101940.0,101930.0,0.59174]
[1762665456380,0.34558371,101940.0,101930.0,0.59174]
[1762665456585,0.31047624,101940.0,101930.0,0.59174]
[1762665458886,0.340798,101940.0,101930.0,0.3608]
[1762665459081,0.35835701,101940.0,101930.0,0.3608]
[1762665461990,0.35835701,101940.0,101930.0,0.53833]
[1762665462291,0.35835701,101940.0,101930.0,0.44575]
[1762665464294,0.35835701,101940.0,101930.0,0.53833]
[1762665464685,0.35835701,101940.0,101930.0,0.52556223]
[1762665465097,0.27058792,101940.0,101930.0,0.52556223]
[1762665465286,0.35845943,101940.0,101930.0,0.52556223]
[1762665466296,0.27058792,101940.0,101930.0,0.52556223]
[1762665466593,0.35846228,101940.0,101930.0,0.52556223]
[1762665466899,0.27058792,101940.0,101930.0,0.52556223]
[1762665467293,0.39356558,101940.0,101930.0,0.52556223]
[1762665468600,0.39356558,101940.0,101930.0,0.57614223]
[1762665469298,0.27058792,101940.0,101930.0,0.57614223]
[1762665469701,0.25781792,101940.0,101930.0,0.57614223]
[1762665470696,0.38079558,101940.0,101930.0,0.56337444]
[1762665471003,0.21111,101930.0,101920.0,0.00014705]
[1762665471193,0.63723927,101930.0,101920.0,0.00014705]
[1762665471501,0.78510114,101930.0,101920.0,0.00014705]
[1762665471894,0.17102,101920.0,101910.0,0.57378]
[1762665472093,0.24130376,101920.0,101910.0,0.57378]
[1762665472291,0.38782362,101920.0,101910.0,0.57378]
[1762665473504,0.37123648,101920.0,101910.0,0.57378]
[1762665474114,0.37423648,101920.0,101910.0,0.57378]
[1762665475202,0.32153986,101920.0,101910.0,0.57378]
[1762665475898,0.36018986,101920.0,101910.0,0.57378]
[1762665476099,0.39176455,101920.0,101910.0,0.57378]
[1762665476305,0.43041455,101920.0,101910.0,0.57378]
[1762665476799,0.43041455,101920.0,101910.0,0.56101034]
[1762665481606,0.43041455,101920.0,101910.0,0.53104]
[1762665481813,0.36018986,101920.0,101910.0,0.3608]
[1762665482013,0.17558,101910.0,101900.0,0.58312705]
[1762665482216,0.58405663,101910.0,101900.0,0.58312705]
[1762665482404,0.73187603,101910.0,101900.0,0.58312705]
[1762665483103,0.73287603,101910.0,101900.0,0.58312705]
[1762665483612,0.71533156,101910.0,101900.0,0.58312705]
[1762665484213,0.20147156,101910.0,101900.0,0.58312705]
[1762665484808,0.23657722,101910.0,101900.0,0.58312705]
[1762665485010,0.07019663,101920.0,101910.0,0.20584]
[1762665485209,0.58424368,101930.0,101920.0,0.19683]
[1762665485514,0.30860701,101930.0,101920.0,0.55763]
[1762665485716,0.00014705,101930.0,101920.0,0.55763]
[1762665485902,0.14755061,101930.0,101920.0,0.55763]
[1762665486108,0.00014705,101930.0,101920.0,0.55763]
[1762665487211,0.00314705,101930.0,101920.0,0.55763]
[1762665487511,0.00514705,101930.0,101920.0,0.55763]
[1762665488219,0.00414705,101930.0,101920.0,0.55763]
[1762665489102,0.00114705,101930.0,101920.0,0.55763]
[1762665489302,0.00214705,101930.0,101920.0,0.55763]
[1762665490217,0.00114705,101930.0,101920.0,0.55763]
[1762665491819,0.09254705,101930.0,101920.0,0.55763]
[1762665492111,0.22998705,101930.0,101920.0,0.55763]
[1762665492820,0.37811929,101930.0,101920.0,0.54024]
[1762665496221,0.37811929,101930.0,101920.0,0.55571]
[1762665496420,0.32485929,101930.0,101920.0,0.55571]
[1762665504925,0.14927929,101930.0,101920.0,0.55571]
[1762665505231,0.20194598,101930.0,101920.0,0.55571]
[1762665506832,0.00114705,101930.0,101920.0,0.55571]
[1762665507028,0.00114705,101930.0,101920.0,0.6538604]
[1762665509127,0.05266669,101940.0,101930.0,0.19241]
[1762665509327,0.05266669,101940.0,101930.0,0.55321]
[1762665510432,0.05566669,101940.0,101930.0,0.55321]
[1762665512030,0.07319663,101940.0,101930.0,0.55321]
[1762665514332,0.15102663,101940.0,101930.0,0.55321]
[1762665514537,0.23429663,101940.0,101930.0,0.55321]
[1762665516834,0.15102663,101940.0,101930.0,0.55321]
[1762665517135,0.23429663,101940.0,101930.0,0.55321]
[1762665517930,0.28357663,101940.0,101930.0,0.55321]
[1762665518340,0.23429663,101940.0,101930.0,0.55321]
[1762665521438,0.1641,101940.0,101930.0,0.55321]
[1762665522032,0.2168628,101940.0,101930.0,0.55321]
[1762665522434,0.2661428,101940.0,101930.0,0.52024]
[1762665522934,0.21338,101940.0,101930.0,0.52024]
[1762665524040,0.26614706,101940.0,101930.0,0.55431]
[1762665524341,0.21686706,101940.0,101930.0,0.55431]
[1762665525242,0.1641,101940.0,101930.0,0.55431]
[1762665526035,0.21338,101940.0,101930.0,0.55431]
[1762665528244,0.28357663,101940.0,101930.0,0.55431]
[1762665528840,0.23429663,101940.0,101930.0,0.55431]
[1762665529044,0.28357663,101940.0,101930.0,0.55431]
[1762665530442,0.28357663,101940.0,101930.0,0.52024]
[1762665530649,0.42978547,101940.0,101930.0,0.3608]
[1762665530956,0.44743811,101940.0,101930.0,0.3608]
[1762665532965,0.56054927,101940.0,101930.0,0.44015]
[1762665533866,0.89874927,101940.0,101930.0,0.44015]
[1762665539269,0.89874927,101940.0,101930.0,0.51212]
[1762665542264,0.58159368,101940.0,101930.0,0.55633]
[1762665542464,0.38063325,101940.0,101930.0,0.55633]
[1762665543467,0.31030884,101940.0,101930.0,0.55633]
[1762665543971,0.42342,101940.0,101930.0,0.55633]
[1762665544166,0.49374441,101940.0,101930.0,0.55633]
[1762665544372,0.20195962,101940.0,101930.0,0.55633]
[1762665546872,0.50470078,101940.0,101930.0,0.51212]
[1762665547068,0.52227441,101940.0,101930.0,0.51212]
[1762665560284,0.40916325,101940.0,101930.0,0.51212]
[1762665560583,0.52227441,101940.0,101930.0,0.51212]
[1762665562188,0.52227441,101940.0,101930.0,0.3608]
[1762665562587,0.52227441,101940.0,101930.0,0.43591]
[1762665562787,0.52227441,101940.0,101930.0,0.50788]
[1762665565180,0.86031441,101940.0,101930.0,0.50788]
[1762665569288,0.78999,101940.0,101930.0,0.50788]
[1762665571087,0.87783927,101940.0,101930.0,0.50788]
[1762665571488,0.78999,101940.0,101930.0,0.50788]
[1762665571688,0.86045513,101940.0,101930.0,0.50788]
[1762665572189,0.87783927,101940.0,101930.0,0.50788]
[1762665572380,0.93435181,101940.0,101930.0,0.50788]
[1762665574590,0.93435181,101940.0,101930.0,0.86868]
[1762665578594,0.76472811,101940.0,101930.0,0.86868]
[1762665578786,0.93435181,101940.0,101930.0,0.86868]
[1762665579695,0.76472811,101940.0,101930.0,0.86868]
[1762665579889,0.93435181,101940.0,101930.0,0.86868]
[1762665581399,0.76472811,101940.0,101930.0,0.86868]
[1762665581596,0.93435181,101940.0,101930.0,0.86868]
[1762665583195,0.93435181,101940.0,101930.0,0.14708]
[1762665583401,0.93435181,101940.0,101930.0,0.86868]
[1762665586493,0.31065811,101940.0,101930.0,0.8888]
[1762665586688,0.44321497,101940.0,101930.0,0.8888]
[1762665586894,0.52802682,101940.0,101930.0,0.8888]
[1762665587788,0.52702682,101940.0,101930.0,0.8888]
[1762665587996,0.52602682,101940.0,101930.0,0.8888]
[1762665588198,0.56512682,101940.0,101930.0,0.8888]
[1762665589500,0.56512682,101940.0,101930.0,0.86868]
[1762665592104,0.56512682,101940.0,101930.0,0.14708]
[1762665592296,0.56512682,101940.0,101930.0,0.86868]
[1762665596808,0.58246181,101940.0,101930.0,0.86868]
[1762665602709,0.41283811,101940.0,101930.0,0.86868]
[1762665603012,0.58246181,101940.0,101930.0,0.86868]
[1762665603212,0.41283811,101940.0,101930.0,0.86868]
[1762665603513,0.5651444,101940.0,101930.0,0.86868]
[1762665605206,0.3955207,101940.0,101930.0,0.8888]
[1762665605405,0.5651444,101940.0,101930.0,0.8888]
[1762665608120,0.37615255,101940.0,101930.0,0.8888]
[1762665608921,0.43493255,101940.0,101930.0,0.8888]
[1762665609118,0.30255255,101940.0,101930.0,0.8888]
[1762665609526,0.36402255,101940.0,101930.0,0.8888]
[1762665610617,0.2177407,101940.0,101930.0,0.8888]
[1762665610822,0.23202069,101940.0,101930.0,0.8888]
[1762665611221,0.23202069,101940.0,101930.0,1.07175265]
[1762665611222,0.20009779,101940.0,101930.0,1.07175265]
[1762665611525,0.23534442,101940.0,101930.0,1.07175265]
[1762665612327,0.18245547,101940.0,101930.0,1.07175265]
[1762665614030,0.18245547,101940.0,101930.0,1.08175264]
[1762665615332,0.03624663,101940.0,101930.0,1.08175264]
[1762665616436,0.05288895,101950.0,101940.0,0.12303]
[1762665616727,0.05288895,101950.0,101940.0,0.48383]
[1762665617032,0.1377008,101950.0,101940.0,0.48383]
[1762665617231,0.05288895,101950.0,101940.0,0.48383]
[1762665618233,0.05288895,101950.0,101940.0,0.5819611]
[1762665618635,0.05588895,101950.0,101940.0,0.66677295]
[1762665619737,0.05588895,101950.0,101940.0,0.48383]
[1762665620040,0.05588895,101950.0,101940.0,0.66677295]
[1762665620335,0.003,101950.0,101940.0,0.66677295]
[1762665620628,0.003,101950.0,101940.0,0.48383]
[1762665621026,0.20806185,101950.0,101940.0,0.48383]
[1762665621533,0.08781185,101950.0,101940.0,0.48383]
[1762665622941,0.14928185,101950.0,101940.0,0.48383]
[1762665624936,0.08781185,101950.0,101940.0,0.48383]
[1762665625637,0.14928185,101950.0,101940.0,0.48383]
[1762665625837,0.14928185,101950.0,101940.0,0.56864185]
[1762665626141,0.2021708,101950.0,101940.0,0.92944185]
[1762665626740,0.37207265,101950.0,101940.0,0.84463]
[1762665632239,0.38971556,101950.0,101940.0,0.84463]
[1762665634444,0.33314048,101950.0,101940.0,0.84463]
[1762665634843,0.22009186,101950.0,101940.0,0.84463]
[1762665635147,0.20239694,101950.0,101940.0,0.84463]
[1762665635339,0.31544556,101950.0,101940.0,0.84463]
[1762665635649,0.05583694,101950.0,101940.0,0.84463]
[1762665636142,0.11264694,101950.0,101940.0,0.84463]
[1762665637236,0.05583694,101950.0,101940.0,0.942761]
[1762665638543,0.23352186,101970.0,101950.0,0.10109999]
[1762665638738,0.05289195,101960.0,101950.0,0.10826844]
[1762665638939,0.05289195,101960.0,101950.0,0.82986844]
[1762665639545,0.10970195,101960.0,101950.0,0.82986844]
[1762665640142,0.16262195,101960.0,101950.0,0.82986844]
[1762665640349,0.10970195,101960.0,101950.0,0.82986844]
[1762665641246,0.11170195,101960.0,101950.0,0.82986844]
[1762665641647,0.11470195,101960.0,101950.0,0.82986844]
[1762665642248,0.06181,101960.0,101950.0,0.82986844]
[1762665642740,0.1469,101960.0,101950.0,0.73174704]
[1762665643442,0.25994862,101960.0,101950.0,0.73174704]
[1762665646353,0.29518386,101960.0,101950.0,0.73174704]
[1762665647146,0.40823248,101960.0,101950.0,0.72174705]
[1762665647353,0.59092529,101960.0,101950.0,0.72174705]
[1762665647550,1.19092529,101960.0,101950.0,0.72174705]
[1762665647744,0.13307,101950.0,101940.0,0.3608]
[1762665647943,0.24611862,101950.0,101940.0,0.3608]
[1762665648255,0.39383755,101950.0,101940.0,0.3608]
[1762665648949,0.39683755,101950.0,101940.0,0.3608]
[1762665649950,0.73475755,101950.0,101940.0,0.3608]
[1762665650344,0.73275755,101950.0,101940.0,0.3608]
[1762665650546,0.73575755,101950.0,101940.0,0.3608]
[1762665651053,0.73575755,101950.0,101940.0,0.41227]
[1762665651352,0.73675755,101950.0,101940.0,0.41227]
[1762665651554,0.73675755,101950.0,101940.0,0.46469]
[1762665652464,0.77196264,101950.0,101940.0,0.46469]
[1762665653942,0.77196264,101950.0,101940.0,0.41227]
[1762665654954,0.77196264,101950.0,101940.0,0.3608]
[1762665655854,0.80728941,101950.0,101940.0,0.3608]
[1762665656446,0.73675755,101950.0,101940.0,0.3608]
[1762665657053,0.73675755,101950.0,101930.0,0.46669705]
[1762665657054,0.13365,101940.0,101930.0,0.46669705]
[1762665657349,0.42903177,101940.0,101930.0,0.46669705]
[1762665658557,0.43003177,101940.0,101930.0,0.46669705]
[1762665658856,0.43003177,101940.0,101930.0,0.41241705]
[1762665659057,0.44761479,101940.0,101930.0,0.00014705]
[1762665659458,0.81041479,101940.0,101930.0,0.00014705]
[1762665659758,0.82817305,101940.0,101930.0,0.00014705]
[1762665660356,0.81039719,101940.0,101930.0,0.00014705]
[1762665662254,0.82817305,101940.0,101930.0,0.00014705]
[1762665662457,0.13827,101930.0,101920.0,0.3608]
[1762665662759,0.82442718,101930.0,101920.0,0.3608]
[1762665663760,0.82542718,101930.0,101920.0,0.3608]
[1762665663965,0.82542718,101930.0,101920.0,0.41428]
[1762665664258,0.82542718,101930.0,101920.0,0.46956]
[1762665665357,0.77271709,101930.0,101920.0,0.46956]
[1762665666462,0.77271709,101930.0,101920.0,0.10876]
[1762665667465,0.82542718,101930.0,101920.0,0.10876]
[1762665668659,0.82542718,101930.0,101920.0,0.05448]
[1762665669655,0.82542718,101930.0,101920.0,0.001]
[1762665670157,0.82542718,101930.0,101920.0,0.05448]
[1762665670361,0.71237856,101930.0,101920.0,0.10876]
[1762665670663,0.82542718,101930.0,101920.0,0.46956]
[1762665670967,0.9384758,101930.0,101920.0,0.001]
[1762665671263,0.82542718,101930.0,101920.0,0.001]
[1762665671461,0.79028712,101930.0,101920.0,0.001]
[1762665672167,0.82539096,101930.0,101920.0,0.001]
[1762665673065,1.26413574,101930.0,101920.0,0.001]
[1762665673366,1.0380385,101930.0,101920.0,0.001]
[1762665673665,1.15108712,101930.0,101920.0,0.001]
[1762665673866,1.15108712,101930.0,101920.0,0.10876]
[1762665674059,0.45224712,101930.0,101920.0,0.10876]
[1762665674365,0.82543356,101930.0,101920.0,0.46956]
[1762665674565,0.82551356,101930.0,101920.0,0.46956]
[1762665675561,0.82551356,101930.0,101920.0,0.10876]
[1762665675866,0.79040712,101930.0,101920.0,0.10876]
[1762665676161,1.15120712,101930.0,101920.0,0.10876]
[1762665676364,0.79040712,101930.0,101920.0,0.10876]
[1762665676560,0.6773585,101930.0,101920.0,0.10876]
[1762665676766,0.79040712,101930.0,101920.0,0.10876]
[1762665678167,1.15120712,101930.0,101920.0,0.10876]
[1762665678368,1.15120712,101930.0,101920.0,0.05448]
[1762665678568,0.79040712,101930.0,101920.0,0.10876]
[1762665679658,0.73769703,101930.0,101920.0,0.10876]
[1762665679965,0.80822889,101930.0,101920.0,0.10876]
[1762665681367,0.80822889,101930.0,101920.0,0.05448]
[1762665681868,0.80822889,101930.0,101920.0,0.001]
[1762665682057,1.28207751,101930.0,101920.0,0.001]
[1762665682254,0.13827,101920.0,101910.0,0.00014705]
[1762665682461,0.4348991,101920.0,101910.0,0.00014705]
[1762665682661,0.94277396,101920.0,101910.0,0.00014705]
[1762665683259,0.71667672,101920.0,101910.0,0.00014705]
[1762665683455,0.71667672,101920.0,101910.0,0.10790705]
[1762665683660,0.82972534,101920.0,101910.0,0.00214705]
[1762665683869,0.82972534,101920.0,101910.0,0.05562705]
[1762665684263,0.82972534,101920.0,101910.0,0.05662705]
[1762665684569,0.82972534,101920.0,101910.0,0.11090705]
[1762665684768,0.80708534,101920.0,101910.0,0.47170705]
[1762665685074,0.80908534,101920.0,101910.0,0.47070705]
[1762665685764,0.47092534,101920.0,101910.0,0.47070705]
[1762665685964,0.80908534,101920.0,101910.0,0.46870705]
[1762665686165,0.81008534,101920.0,101910.0,0.46870705]
[1762665687069,0.81004534,101920.0,101910.0,0.46870705]
[1762665688071,0.80804534,101920.0,101910.0,0.46870705]
[1762665688277,0.80904534,101920.0,101910.0,0.46870705]
[1762665688466,0.80804534,101920.0,101910.0,0.41239705]
[1762665688667,1.28189396,101920.0,101910.0,0.00014705]
[1762665688868,1.28189396,101920.0,101910.0,0.04948472]
[1762665689174,0.92109396,101920.0,101910.0,0.04948472]
[1762665690975,0.92109396,101920.0,101910.0,0.09626472]
[1762665692377,0.80804534,101920.0,101910.0,0.09626472]
[1762665693279,0.90333444,101920.0,101910.0,0.09626472]
[1762665693678,0.8505621,101920.0,101910.0,0.04948472]
[1762665693866,0.12842,101910.0,101900.0,0.45917705]
[1762665694072,0.32942272,101910.0,101900.0,0.45917705]
[1762665694271,0.47736949,101910.0,101900.0,0.45917705]
[1762665694667,0.42459703,101910.0,101900.0,0.45917705]
[1762665694973,0.47736949,101910.0,101900.0,0.45917705]
[1762665695184,0.47736949,101910.0,101900.0,0.46217705]
[1762665696176,0.47736949,101910.0,101900.0,0.46017705]
[1762665696381,0.53401189,101910.0,101900.0,0.46017705]
[1762665696780,0.53501189,101910.0,101900.0,0.45917705]
[1762665697681,0.49983025,101910.0,101900.0,0.45917705]
[1762665698074,0.53501952,101910.0,101900.0,0.45917705]
[1762665698278,0.53501972,101910.0,101900.0,0.45917705]
[1762665700178,0.49983025,101910.0,101900.0,0.45917705]
[1762665701279,0.4998629,101910.0,101900.0,0.45917705]
[1762665704092,0.4998629,101910.0,101900.0,0.09837705]
[1762665704294,0.4998629,101910.0,101900.0,0.45917705]
[1762665704483,0.4998629,101910.0,101900.0,0.36094705]
[1762665704684,0.49985741,101910.0,101900.0,0.00014705]
[1762665704885,0.96323516,101910.0,101900.0,0.00014705]
[1762665705185,0.87838965,101910.0,101900.0,0.00014705]
[1762665710692,0.87838965,101910.0,101900.0,0.09067705]
[1762665710893,1.21642965,101910.0,101900.0,0.09067705]
[1762665712191,0.51758965,101910.0,101900.0,0.09067705]
[1762665712398,0.85562965,101910.0,101900.0,0.45147705]
[1762665713795,0.51758965,101910.0,101900.0,0.45147705]
[1762665713998,0.85562965,101910.0,101900.0,0.45147705]
[1762665714894,0.85562965,101910.0,101900.0,0.09067705]
[1762665715096,0.85562965,101910.0,101900.0,0.45147705]
[1762665716400,0.85562965,101910.0,101900.0,0.00014705]
[1762665716698,0.85562965,101910.0,101900.0,0.04114705]
[1762665717397,0.85562965,101910.0,101900.0,0.00014705]
[1762665718400,1.21642965,101910.0,101900.0,0.00014705]
[1762665719203,0.85562965,101910.0,101900.0,0.00014705]
[1762665721807,0.85562965,101910.0,101900.0,2.451e-05]
[1762665722202,0.78509779,101910.0,101900.0,2.451e-05]
[1762665722408,0.87294706,101910.0,101900.0,2.451e-05]
[1762665726907,0.87294706,101910.0,101900.0,0.04102451]
[1762665727301,0.77523706,101910.0,101900.0,2.451e-05]
[1762665727901,0.11819,101900.0,101890.0,0.4428]
[1762665728097,0.35827067,101900.0,101890.0,0.4428]
[1762665728300,0.50496362,101900.0,101890.0,0.4428]
[1762665729102,0.50496362,101900.0,101890.0,0.4458]
[1762665730106,0.58980913,101900.0,101890.0,0.4048]
[1762665730611,0.58980913,101900.0,101890.0,0.4428]
[1762665730612,0.59080913,101900.0,101890.0,0.4428]
[1762665730911,0.43557397,101900.0,101890.0,0.4428]
[1762665732410,0.48838509,101900.0,101890.0,0.4428]
[1762665733002,0.49958027,101900.0,101890.0,0.4428]
[1762665734212,0.44676915,101900.0,101890.0,0.4428]
[1762665735314,0.27707813,101900.0,101890.0,0.4428]
[1762665735508,0.49960687,101900.0,101890.0,0.4428]
[1762665738315,0.44676915,101900.0,101890.0,0.4428]
[1762665739202,0.5171588,101900.0,101890.0,0.4428]
[1762665740006,0.5171588,101900.0,101890.0,0.06922874]
[1762665740912,0.11819,101890.0,101880.0,0.37094704]
[1762665741116,0.76360389,101890.0,101880.0,0.00014705]
[1762665741319,1.21816648,101890.0,101880.0,0.00014705]
[1762665741610,1.13332097,101890.0,101880.0,0.00014705]
[1762665742212,1.21816648,101890.0,101880.0,0.00014705]
[1762665742912,1.21816648,101890.0,101880.0,0.00114705]
[1762665743113,1.13332097,101890.0,101880.0,0.00314705]
[1762665743511,1.20371062,101890.0,101880.0,0.00314705]
[1762665755228,1.13332097,101890.0,101880.0,0.00314705]
[1762665755924,1.13332097,101890.0,101860.0,0.3608]
[1762665755925,0.10401,101870.0,101860.0,0.3608]
[1762665756124,0.10401,101860.0,101850.0,0.00012061]
[1762665756331,0.44635204,101860.0,101850.0,0.00012061]
[1762665756527,0.59362522,101860.0,101850.0,0.00012061]
[1762665757429,0.59362522,101860.0,101850.0,0.0101206]
[1762665757734,0.59362522,101860.0,101850.0,0.00012061]
[1762665758329,0.45235256,101860.0,101850.0,0.00012061]
[1762665758722,0.10401,101850.0,101840.0,0.36094705]
[1762665758918,0.59050674,101850.0,101840.0,0.36094705]
[1762665759229,0.70181079,101850.0,101840.0,0.37943705]
[1762665759432,0.58854692,101850.0,101840.0,0.40792704]
[1762665759623,0.70181079,101850.0,101840.0,0.40792704]
[1762665759824,0.70181079,101850.0,101840.0,0.40892704]
[1762665759825,0.70189612,101850.0,101840.0,0.40892704]
[1762665764229,0.70189612,101850.0,101840.0,0.39892705]
[1762665764535,0.70189612,101850.0,101840.0,0.40892704]
[1762665768228,0.25051225,101850.0,101840.0,0.40892704]
[1762665768435,0.36377612,101850.0,101840.0,0.40892704]
[1762665769338,0.36377612,101850.0,101840.0,0.50715454]
[1762665769836,0.25051225,101850.0,101840.0,0.50715454]
[1762665770038,0.36377612,101850.0,101840.0,0.50715454]
[1762665770940,0.36377612,101850.0,101840.0,0.75263454]
[1762665771129,0.36377612,101850.0,101840.0,0.50715454]
[1762665771330,0.36377612,101850.0,101840.0,0.75263454]
[1762665771531,0.36377612,101850.0,101840.0,0.50715454]
[1762665774137,0.36377612,101850.0,101840.0,0.40892704]
[1762665774332,0.36377612,101850.0,101840.0,0.50715454]
[1762665774941,0.25051225,101850.0,101840.0,0.50715454]
[1762665775128,0.36377612,101850.0,101840.0,0.50715454]
[1762665776235,0.39888899,101850.0,101840.0,0.50715454]
[1762665776838,0.36377612,101850.0,101840.0,0.50715454]
[1762665777340,0.39888899,101850.0,101840.0,0.50715454]
[1762665777844,0.25247207,101850.0,101840.0,0.50715454]
[1762665778033,0.0749182,101850.0,101840.0,0.50715454]
[1762665778238,0.1129782,101850.0,101840.0,0.50715454]
[1762665778428,0.1356582,101850.0,101840.0,0.50715454]
[1762665780938,0.1356582,101850.0,101840.0,0.14635454]
[1762665781144,0.1356582,101850.0,101840.0,0.86795454]
[1762665785248,0.18835084,101850.0,101840.0,0.86795454]
[1762665788242,0.1356582,101850.0,101840.0,0.86795454]
[1762665789849,8.533e-05,101850.0,101840.0,1.11343454]
[1762665790947,8.533e-05,101850.0,101840.0,1.1486756]
[1762665791249,8.533e-05,101850.0,101840.0,1.22669841]
[1762665791750,8.533e-05,101850.0,101840.0,0.98121841]
[1762665792047,8.533e-05,101850.0,101840.0,1.22669841]
[1762665793554,8.533e-05,101850.0,101840.0,1.26193947]
[1762665793843,8.533e-05,101850.0,101840.0,1.01645947]
[1762665794450,8.533e-05,101850.0,101840.0,1.26193947]
[1762665802153,8.533e-05,101850.0,101840.0,1.01645947]
[1762665802559,8.533e-05,101850.0,101840.0,1.26193947]
[1762665803055,8.533e-05,101850.0,101840.0,1.26493947]
[1762665803760,8.533e-05,101850.0,101840.0,1.01945947]
[1762665803954,8.533e-05,101850.0,101840.0,1.26793947]
[1762665804557,8.533e-05,101850.0,101840.0,1.02245947]
[1762665804949,8.533e-05,101850.0,101840.0,1.26793947]
[1762665805755,8.533e-05,101850.0,101840.0,1.02245947]
[1762665806054,8.533e-05,101850.0,101840.0,1.26793947]
[1762665806447,0.08806533,101850.0,101840.0,1.1546756]
[1762665806646,0.2013292,101850.0,101840.0,0.76572705]
[1762665806853,0.2013292,101850.0,101840.0,0.77572704]
[1762665807857,0.2013292,101850.0,101840.0,0.76272705]
[1762665808057,0.2013292,101850.0,101840.0,0.77272704]
[1762665808454,0.2013292,101850.0,101840.0,0.76872704]
[1762665809960,0.2013292,101850.0,101840.0,0.85695455]
[1762665810153,0.2013292,101850.0,101840.0,0.86695454]
[1762665810458,0.08806533,101850.0,101840.0,0.86695454]
[1762665814261,0.08806533,101850.0,101840.0,0.86895454]
[1762665814865,0.08806533,101850.0,101840.0,0.87095454]
[1762665818263,0.08806533,101850.0,101840.0,0.9061956]
[1762665818451,0.17297955,101850.0,101840.0,0.9061956]
[1762665820264,0.08806533,101850.0,101840.0,0.99110982]
[1762665821269,0.08806533,101850.0,101840.0,0.9061956]
[1762665821567,0.08806533,101850.0,101840.0,0.99110982]
[1762665822468,0.08806533,101850.0,101840.0,0.95586876]
[1762665822670,0.05365533,101850.0,101840.0,0.95586876]
[1762665822869,0.02092533,101850.0,101840.0,0.95586876]
[1762665823270,0.05365533,101850.0,101840.0,0.95586876]
[1762665823771,8.533e-05,101850.0,101840.0,0.95586876]
[1762665823969,0.03281533,101850.0,101840.0,1.23658982]
[1762665824169,0.03281533,101850.0,101840.0,0.99110982]
[1762665825679,0.03281533,101850.0,101840.0,0.95586876]
[1762665827371,8.533e-05,101850.0,101840.0,0.99110982]
[1762665827778,0.04943533,101850.0,101840.0,0.99110982]
[1762665828078,0.04943533,101850.0,101840.0,1.23658982]
[1762665828380,0.04943533,101850.0,101840.0,0.99110982]
[1762665830675,0.01811533,101850.0,101840.0,0.99110982]
[1762665833177,8.533e-05,101850.0,101840.0,0.99110982]
[1762665833384,8.533e-05,101850.0,101840.0,1.37446119]
[1762665834682,8.533e-05,101850.0,101840.0,1.27728119]
[1762665834888,8.533e-05,101850.0,101840.0,1.46980404]
[1762665835084,8.533e-05,101850.0,101840.0,1.27728119]
[1762665835385,0.17433256,101870.0,101860.0,0.10820819]
[1762665835586,0.17433256,101870.0,101860.0,0.91472241]
[1762665836284,0.17438869,101870.0,101860.0,0.82980819]
[1762665837287,0.17538869,101870.0,101860.0,0.82980819]
[1762665837583,0.17638869,101870.0,101860.0,0.82980819]
[1762665838187,0.17538869,101870.0,101860.0,0.82980819]
[1762665838484,0.17438869,101870.0,101860.0,0.82980819]
[1762665839186,0.12169605,101870.0,101860.0,0.91472241]
[1762665839485,0.12169605,101870.0,101860.0,0.82980819]
[1762665839885,0.12169605,101870.0,101860.0,0.91472241]
[1762665841086,0.08658318,101870.0,101860.0,0.91472241]
[1762665841492,0.12179914,101870.0,101860.0,0.91472241]
[1762665842285,0.12179914,101870.0,101860.0,0.96226795]
[1762665842286,0.05850914,101870.0,101860.0,0.96226795]
[1762665842484,0.03541914,101870.0,101860.0,1.20770795]
[1762665842788,0.00020318,101870.0,101860.0,0.96226795]
[1762665843087,0.00020318,101870.0,101860.0,1.29262217]
[1762665843789,0.00020318,101870.0,101860.0,1.04718217]
[1762665844079,0.1109986,101880.0,101870.0,0.0981986]
[1762665844080,0.02309,101880.0,101870.0,0.0981986]
[1762665844285,0.02309,101880.0,101870.0,0.54391282]
[1762665844582,0.07967,101890.0,101880.0,0.0981889]
[1762665844789,0.07967,101890.0,101880.0,0.46898889]
[1762665845585,0.07967,101890.0,101880.0,0.55390311]